bitfinex-derivatives/quotes_BTCF0:USTF0_20260106
["timestamp","ask_amount","ask_price","bid_price","bid_amount"]
[1767734423288,0.010666,93805.0,93774.0,0.09068]
[1767734423493,0.010666,93803.0,93774.0,0.09068]
[1767734423789,0.010666,93804.0,93774.0,0.09068]
[1767734424088,0.09068,93803.0,93774.0,0.09068]
[1767734424287,0.09068,93808.0,93775.0,0.0900193]
[1767734424475,0.010666,93806.0,93775.0,0.0900193]
[1767734424888,0.010666,93804.0,93777.0,0.09802682]
[1767734425189,0.010666,93800.0,93777.0,0.09802682]
[1767734425379,0.010666,93805.0,93777.0,0.09802682]
[1767734425580,0.010666,93803.0,93777.0,0.09802682]
[1767734425888,0.010666,93803.0,93778.0,0.09068]
[1767734426186,0.010666,93803.0,93778.0,0.18870682]
[1767734426388,0.09068,93808.0,93779.0,0.09802682]
[1767734427679,0.09068,93808.0,93782.0,0.09802682]
[1767734427879,0.010666,93802.0,93782.0,0.09802682]
[1767734428077,0.09068,93807.0,93757.0,0.09802682]
[1767734428390,0.09791931,93789.0,93757.0,0.09802682]
[1767734428582,0.053325,93816.0,93742.0,0.05982784]
[1767734428583,0.09791931,93775.0,93742.0,0.05982784]
[1767734428776,0.010671,93755.0,93734.0,0.09068]
[1767734429091,0.09791931,93757.0,93723.0,0.09068]
[1767734429285,0.09791931,93755.0,93721.0,0.09068]
[1767734429482,0.09791931,93755.0,93707.0,0.34416]
[1767734429483,0.09791931,93753.0,93714.0,0.09072]
[1767734429687,0.010673,93746.0,93714.0,0.09072]
[1767734429892,0.0908232,93745.0,93714.0,0.09072]
[1767734430085,0.010673,93744.0,93714.0,0.09072]
[1767734430286,0.010673,93741.0,93714.0,0.09072]
[1767734430593,0.0908232,93745.0,93714.0,0.101396]
[1767734430786,0.0908232,93745.0,93714.0,0.18874682]
[1767734430983,0.0908232,93745.0,93715.0,0.09802682]
[1767734431393,0.010673,93742.0,93715.0,0.09802682]
[1767734431690,0.09118509,93735.0,93700.0,0.09388738]
[1767734431901,0.010675,93725.0,93691.0,0.18460738]
[1767734432084,0.010675,93722.0,93692.0,0.09072]
[1767734432282,9.597e-05,93724.0,93704.0,0.010677]
[1767734432588,0.09072,93733.0,93712.0,0.09388738]
[1767734432794,0.09072,93732.0,93712.0,0.09388738]
[1767734433182,0.09118509,93730.0,93691.0,0.010679]
[1767734433386,0.09118509,93728.0,93692.0,0.010679]
[1767734433691,0.09072,93727.0,93699.0,0.09513614]
[1767734433893,0.09072,93728.0,93701.0,0.09388738]
[1767734434085,0.09072,93728.0,93702.0,0.09072]
[1767734434486,0.09118509,93738.0,93703.0,0.09388738]
[1767734434689,0.09118509,93733.0,93702.0,0.09072]
[1767734434889,0.010674,93732.0,93702.0,0.09072]
[1767734435195,0.10185909,93732.0,93702.0,0.09072]
[1767734435381,0.09118509,93728.0,93702.0,0.09072]
[1767734435586,0.09118509,93726.0,93702.0,0.09072]
[1767734435880,0.09072,93737.0,93702.0,0.09072]
[1767734435881,0.010674,93735.0,93704.0,0.09513614]
[1767734436090,0.09072,93734.0,93708.0,0.09388738]
[1767734436285,0.09118509,93745.0,93711.0,0.010676]
[1767734436491,0.09118509,93745.0,93714.0,0.09388738]
[1767734436686,0.09072,93744.0,93716.0,0.09513614]
[1767734436890,0.09072,93743.0,93716.0,0.18902352]
[1767734437287,0.09118509,93752.0,93709.0,0.09388738]
[1767734437488,0.09118509,93734.0,93701.0,0.09388738]
[1767734437689,0.09118509,93734.0,93702.0,0.09072]
[1767734437690,0.09072,93733.0,93702.0,0.09072]
[1767734438196,0.010675,93727.0,93702.0,0.09072]
[1767734439086,0.18901696,93732.0,93694.0,0.09388738]
[1767734439299,0.010676,93717.0,93686.0,0.18464738]
[1767734439486,0.101436,93717.0,93686.0,0.18464738]
[1767734439995,0.09076,93717.0,93689.0,0.09388738]
[1767734440187,0.09076,93717.0,93691.0,0.09388738]
[1767734440494,0.09076,93717.0,93692.0,0.09388738]
[1767734440796,0.09076,93717.0,93693.0,0.10456538]
[1767734441299,0.09076,93717.0,93693.0,0.09388738]
[1767734442499,0.09076,93717.0,93693.0,0.18464738]
[1767734443301,0.010676,93714.0,93693.0,0.18464738]
[1767734443691,0.010676,93716.0,93693.0,0.18464738]
[1767734443888,0.09076,93717.0,93693.0,0.18464738]
[1767734444089,0.09118509,93716.0,93693.0,0.09076]
[1767734444289,0.010677,93703.0,93686.0,0.09076]
[1767734444590,0.010676,93715.0,93686.0,0.09076]
[1767734444591,0.010678,93701.0,93686.0,0.09076]
[1767734444787,0.09076,93704.0,93680.0,0.09513614]
[1767734444991,0.010678,93699.0,93672.0,0.09076]
[1767734445297,0.010678,93694.0,93672.0,0.09076]
[1767734445499,0.09076,93698.0,93672.0,0.09076]
[1767734445802,0.09076,93698.0,93669.0,8.859e-05]
[1767734445803,0.010678,93695.0,93669.0,8.859e-05]
[1767734445999,0.01068,93681.0,93669.0,8.859e-05]
[1767734446197,0.09118509,93692.0,93669.0,8.859e-05]
[1767734446498,0.18194509,93697.0,93669.0,8.859e-05]
[1767734446801,0.010679,93691.0,93669.0,8.859e-05]
[1767734446987,0.18194509,93697.0,93669.0,8.859e-05]
[1767734447387,0.010679,93687.0,93669.0,8.859e-05]
[1767734447591,0.01068,93685.0,93669.0,8.859e-05]
[1767734447792,0.09118509,93696.0,93669.0,8.859e-05]
[1767734447996,0.09076,93695.0,93672.0,0.09513614]
[1767734448500,0.09118509,93694.0,93669.0,8.859e-05]
[1767734448794,0.09118509,93701.0,93669.0,8.859e-05]
[1767734448996,0.09076,93699.0,93669.0,8.859e-05]
[1767734449196,0.09118509,93698.0,93669.0,8.859e-05]
[1767734449604,0.010679,93693.0,93669.0,8.859e-05]
[1767734450000,0.09076,93692.0,93669.0,8.859e-05]
[1767734450608,0.010679,93691.0,93669.0,8.859e-05]
[1767734450996,0.18194509,93692.0,93652.0,0.09076]
[1767734450997,0.09118509,93679.0,93652.0,0.09076]
[1767734451196,0.010684,93650.0,93639.0,0.09076]
[1767734451405,0.18198509,93659.0,93632.0,0.09076]
[1767734451603,0.010684,93641.0,93630.0,0.09388738]
[1767734451901,0.010684,93642.0,93630.0,0.0937631]
[1767734452205,0.09118509,93640.0,93604.0,0.09513614]
[1767734452404,0.010685,93633.0,93604.0,0.09513614]
[1767734452604,0.010686,93631.0,93604.0,0.09513614]
[1767734452901,9.582e-05,93632.0,93606.0,0.010688]
[1767734453096,9.582e-05,93632.0,93607.0,0.09513614]
[1767734454207,0.0908,93631.0,93607.0,0.18902352]
[1767734455005,0.0908,93631.0,93601.0,0.0908]
[1767734455205,0.09118509,93630.0,93601.0,0.0908]
[1767734455395,0.010686,93625.0,93601.0,0.09388738]
[1767734455597,0.09118509,93630.0,93601.0,0.09388738]
[1767734455802,0.010687,93622.0,93601.0,0.09388738]
[1767734456001,0.010687,93622.0,93577.0,0.6834]
[1767734456002,0.09118509,93620.0,93586.0,0.0908]
[1767734456308,0.010688,93614.0,93587.0,0.18902352]
[1767734456503,9.582e-05,93613.0,93589.0,0.18902352]
[1767734456709,0.010686,93626.0,93591.0,0.18902352]
[1767734456901,0.0908,93625.0,93597.0,0.09388738]
[1767734457604,0.0908,93625.0,93598.0,0.09388738]
[1767734457807,0.0908,93624.0,93598.0,0.09388738]
[1767734458002,0.0908,93623.0,93601.0,0.09513614]
[1767734458201,0.0908,93622.0,93601.0,0.09513614]
[1767734459305,0.0908,93622.0,93600.0,0.09388738]
[1767734459506,0.0908,93622.0,93600.0,0.18902352]
[1767734460204,0.09118509,93641.0,93604.0,0.09513614]
[1767734460408,0.010685,93634.0,93605.0,0.09388738]
[1767734460605,0.09118509,93654.0,93609.0,0.18902352]
[1767734460809,0.09783187,93657.0,93611.0,0.09388738]
[1767734460810,0.09118509,93647.0,93611.0,0.09388738]
[1767734461010,0.09118509,93643.0,93611.0,0.09388738]
[1767734461210,0.010685,93639.0,93611.0,0.09388738]
[1767734461407,0.09084,93642.0,93611.0,0.09388738]
[1767734461613,0.09057088,93641.0,93611.0,0.09388738]
[1767734461811,0.09057088,93641.0,93610.0,0.09084]
[1767734462013,0.010685,93633.0,93610.0,0.09084]
[1767734462314,0.09057088,93641.0,93612.0,0.09470863]
[1767734462510,0.010684,93647.0,93614.0,0.18559354]
[1767734462704,0.09084,93646.0,93621.0,0.09470863]
[1767734463016,0.09084,93645.0,93623.0,0.09470863]
[1767734463205,0.09084,93650.0,93623.0,0.09470863]
[1767734463407,0.09084,93649.0,93625.0,0.09470863]
[1767734463602,0.09057088,93660.0,93628.0,0.10370741]
[1767734463910,0.09084,93655.0,93629.0,0.09302141]
[1767734464112,0.09057088,93660.0,93629.0,0.09302141]
[1767734464309,0.09084,93659.0,93629.0,0.09302141]
[1767734464503,0.010683,93651.0,93629.0,0.09302141]
[1767734464708,0.18290037,93659.0,93629.0,0.09302141]
[1767734464909,0.010683,93651.0,93629.0,0.09302141]
[1767734465414,0.010683,93655.0,93629.0,0.09302141]
[1767734465909,0.010683,93656.0,93629.0,0.09302141]
[1767734466213,0.18290037,93659.0,93629.0,0.09302141]
[1767734466611,0.010683,93651.0,93629.0,0.09302141]
[1767734466814,0.18290037,93659.0,93629.0,0.09302141]
[1767734467015,0.010683,93655.0,93629.0,0.09302141]
[1767734467312,0.010683,93658.0,93629.0,0.09302141]
[1767734467507,0.010683,93656.0,93629.0,0.09302141]
[1767734468018,0.10479915,93669.0,93631.0,0.09302141]
[1767734468318,0.010681,93674.0,93641.0,0.09302141]
[1767734468610,0.09084,93673.0,93641.0,0.09302141]
[1767734468812,0.09084,93673.0,93644.0,0.010684]
[1767734469006,0.010681,93676.0,93642.0,0.09302141]
[1767734469208,0.09206037,93674.0,93642.0,0.09302141]
[1767734469409,0.010683,93650.0,93623.0,0.18386141]
[1767734469708,0.101523,93653.0,93623.0,0.18386141]
[1767734469908,0.09084,93653.0,93624.0,0.09302141]
[1767734470107,0.09084,93653.0,93629.0,0.09302141]
[1767734470509,0.09206037,93658.0,93629.0,0.09302141]
[1767734470708,0.09084,93657.0,93629.0,0.09302141]
[1767734470912,0.010683,93654.0,93629.0,0.09302141]
[1767734471117,0.010683,93657.0,93629.0,0.09302141]
[1767734471307,0.09084,93656.0,93629.0,0.09302141]
[1767734471506,0.09084,93656.0,93632.0,0.09087913]
[1767734471709,0.09084,93655.0,93632.0,0.09087913]
[1767734472415,0.09206037,93641.0,93596.0,0.09440906]
[1767734472626,0.09206037,93618.0,93581.0,0.09440906]
[1767734472913,0.010688,93608.0,93578.0,0.05736431]
[1767734473131,0.09084,93607.0,93578.0,0.05736431]
[1767734474417,0.09084,93607.0,93577.0,0.09084]
[1767734474617,0.09084,93607.0,93577.0,0.15092503]
[1767734474810,0.10274937,93606.0,93577.0,0.15092503]
[1767734475006,0.09084,93607.0,93581.0,0.09302141]
[1767734475409,0.010687,93615.0,93581.0,0.09302141]
[1767734475605,0.010688,93607.0,93581.0,0.09302141]
[1767734475815,0.010689,93605.0,93580.0,0.00010047]
[1767734476020,0.010688,93607.0,93580.0,0.00010047]
[1767734476214,0.10274837,93607.0,93580.0,0.00010047]
[1767734476409,0.010689,93604.0,93580.0,0.00010047]
[1767734476806,0.010689,93601.0,93580.0,0.00010047]
[1767734477013,0.09206037,93599.0,93562.0,0.09302141]
[1767734477210,0.09206037,93572.0,93538.0,0.13095077]
[1767734477409,0.09084,93571.0,93539.0,0.09302141]
[1767734477716,0.09084,93571.0,93542.0,0.09440906]
[1767734477911,0.09084,93571.0,93543.0,0.09302141]
[1767734478112,0.00010047,93570.0,93543.0,0.09302141]
[1767734478314,0.00010047,93570.0,93547.0,0.010695]
[1767734478510,0.00010047,93570.0,93544.0,0.09440906]
[1767734478814,0.00010047,93570.0,93547.0,0.09302141]
[1767734479010,0.00010047,93570.0,93542.0,0.18743047]
[1767734479221,0.00010047,93570.0,93545.0,0.58743047]
[1767734479418,0.00010047,93570.0,93545.0,0.59812547]
[1767734479625,0.00010047,93570.0,93547.0,0.09302141]
[1767734481318,0.00010047,93570.0,93546.0,0.18528906]
[1767734482422,0.09206037,93569.0,93546.0,0.09088]
[1767734482721,0.09088,93582.0,93554.0,0.09302141]
[1767734482926,0.09088,93582.0,93555.0,0.09302141]
[1767734483618,0.09088,93582.0,93557.0,0.09302141]
[1767734483820,0.09088,93582.0,93557.0,0.18390141]
[1767734484716,0.09088,93583.0,93557.0,0.18390141]
[1767734484920,0.010691,93586.0,93557.0,0.18390141]
[1767734485108,0.09088,93583.0,93557.0,0.18390141]
[1767734487222,0.09206037,93588.0,93557.0,0.18390141]
[1767734487427,9.7e-07,93546.0,93541.0,0.13095077]
[1767734487613,0.19363137,93587.0,93542.0,0.0887391]
[1767734487614,0.09206037,93586.0,93542.0,0.0887391]
[1767734487923,0.09206037,93582.0,93542.0,0.0887391]
[1767734488111,0.010692,93576.0,93542.0,0.0887391]
[1767734488421,0.09206037,93581.0,93542.0,0.0887391]
[1767734488422,0.010693,93568.0,93542.0,0.0887391]
[1767734488721,0.09206037,93566.0,93542.0,0.0887391]
[1767734488922,0.10275537,93552.0,93530.0,0.13095077]
[1767734489218,0.010696,93542.0,93524.0,0.1906299]
[1767734489524,0.09206037,93547.0,93518.0,0.09088]
[1767734489823,0.010695,93545.0,93518.0,0.09088]
[1767734490125,0.09206037,93547.0,93518.0,0.09088]
[1767734490513,0.10275537,93547.0,93518.0,0.09088]
[1767734490719,0.09206037,93547.0,93518.0,0.18528906]
[1767734491018,0.09206037,93547.0,93519.0,0.09440906]
[1767734491322,0.010695,93550.0,93522.0,0.18743047]
[1767734491620,0.010696,93540.0,93522.0,0.18743047]
[1767734491819,0.010696,93543.0,93522.0,0.09440906]
[1767734492009,0.010696,93543.0,93518.0,0.09088]
[1767734492010,0.010698,93524.0,93508.0,0.12795077]
[1767734492214,0.010698,93524.0,93500.0,7.754e-05]
[1767734492215,0.09405601,93524.0,93500.0,7.754e-05]
[1767734492619,0.091721,93535.0,93500.0,0.09582136]
[1767734492620,0.09405601,93533.0,93500.0,0.09582136]
[1767734492922,0.18577701,93544.0,93503.0,0.09574382]
[1767734493121,0.010697,93534.0,93503.0,0.09574382]
[1767734493317,0.010699,93514.0,93500.0,7.754e-05]
[1767734493620,0.09405601,93510.0,93492.0,5.4e-07]
[1767734493821,0.0107,93506.0,93482.0,0.09092]
[1767734494027,0.0107,93503.0,93479.0,0.09092]
[1767734494210,0.091721,93504.0,93460.0,0.09574382]
[1767734494521,0.09405601,93488.0,93451.0,0.09574382]
[1767734494722,0.010702,93484.0,93451.0,0.09574382]
[1767734495022,0.09405601,93486.0,93452.0,0.09574382]
[1767734495214,0.010703,93480.0,93452.0,0.09574382]
[1767734495414,7.754e-05,93479.0,93449.0,0.09574382]
[1767734495622,0.010703,93478.0,93451.0,0.09574382]
[1767734495925,0.09092,93483.0,93452.0,0.0942507]
[1767734496113,0.010701,93498.0,93461.0,0.0942507]
[1767734496312,0.09092,93498.0,93463.0,0.0942507]
[1767734496514,0.010701,93495.0,93463.0,0.0942507]
[1767734496719,0.09092,93498.0,93463.0,0.0942507]
[1767734497312,0.09405601,93499.0,93453.0,0.0942507]
[1767734497313,0.09405601,93497.0,93453.0,0.0942507]
[1767734497510,0.09405601,93496.0,93455.0,0.0942507]
[1767734497717,0.010703,93477.0,93455.0,0.0942507]
[1767734497926,0.010703,93481.0,93455.0,0.0942507]
[1767734498126,0.010703,93478.0,93451.0,0.09574382]
[1767734498323,0.09405601,93482.0,93452.0,0.09096]
[1767734498511,0.010704,93472.0,93452.0,0.09096]
[1767734498718,0.09405601,93481.0,93452.0,0.09096]
[1767734498919,0.010704,93475.0,93452.0,0.09096]
[1767734499624,0.010703,93480.0,93452.0,0.09096]
[1767734499822,0.010704,93471.0,93452.0,0.09096]
[1767734500217,0.10475901,93482.0,93452.0,0.09096]
[1767734500422,0.09405601,93493.0,93470.0,0.12452278]
[1767734500626,0.09405601,93493.0,93464.0,0.09096]
[1767734500811,0.09096,93492.0,93464.0,0.09096]
[1767734501210,0.09096,93492.0,93465.0,0.13114295]
[1767734501616,0.09405601,93491.0,93464.0,0.22210295]
[1767734501812,0.09405601,93491.0,93464.0,0.13114295]
[1767734502223,0.10475801,93491.0,93464.0,0.13114295]
[1767734502425,0.10475801,93491.0,93465.0,0.13114295]
[1767734502626,0.10475801,93487.0,93465.0,0.13114295]
[1767734502820,0.10475801,93487.0,93464.0,0.13114295]
[1767734502821,0.09405601,93481.0,93464.0,0.13114295]
[1767734503027,0.09405601,93479.0,93464.0,0.13114295]
[1767734503212,0.101663,93480.0,93460.0,0.13114295]
[1767734503213,0.09096,93480.0,93460.0,0.13114295]
[1767734503623,0.09405601,93489.0,93464.0,0.13114295]
[1767734503824,0.09405601,93508.0,93476.0,0.09574382]
[1767734504125,0.09405601,93533.0,93500.0,0.09574382]
[1767734504323,0.09405601,93533.0,93499.0,0.0942507]
[1767734504324,0.09096,93532.0,93501.0,0.18670382]
[1767734504528,0.09096,93532.0,93502.0,0.09574382]
[1767734505217,0.010698,93527.0,93501.0,0.09096]
[1767734505417,0.18501601,93532.0,93502.0,0.09574382]
[1767734505619,0.09096,93532.0,93503.0,0.09574382]
[1767734506133,0.09096,93532.0,93504.0,0.18999452]
[1767734506430,0.09096,93532.0,93505.0,0.09574382]
[1767734506619,0.10475201,93542.0,93505.0,0.09574382]
[1767734506821,0.09096,93541.0,93506.0,0.09574382]
[1767734507018,0.010696,93544.0,93512.0,0.18999452]
[1767734507219,0.09405601,93547.0,93513.0,0.18670382]
[1767734507821,0.010695,93545.0,93514.0,0.09574382]
[1767734508029,0.09096,93548.0,93516.0,0.09574382]
[1767734508224,0.010696,93542.0,93516.0,0.18999452]
[1767734508420,0.09096,93556.0,93521.0,0.09574382]
[1767734508621,0.09096,93556.0,93523.0,0.0942507]
[1767734508818,0.09405601,93568.0,93534.0,0.09574382]
[1767734509121,0.01069,93592.0,93517.0,0.0942507]
[1767734509122,0.091721,93565.0,93519.0,0.09574382]
[1767734509321,0.09405601,93554.0,93520.0,0.18670382]
[1767734509531,0.010694,93559.0,93521.0,0.09574382]
[1767734509933,0.010694,93560.0,93531.0,0.09574382]
[1767734510124,0.010694,93560.0,93533.0,0.09574382]
[1767734510639,0.09096,93562.0,93533.0,0.09574382]
[1767734510825,0.010694,93561.0,93533.0,0.09574382]
[1767734511026,0.09096,93562.0,93534.0,0.09574382]
[1767734511528,0.01268416,93580.0,93545.0,0.09574382]
[1767734511529,0.010692,93574.0,93545.0,0.09574382]
[1767734511735,0.010692,93574.0,93546.0,0.09096]
[1767734512028,0.09096,93580.0,93549.0,0.09358977]
[1767734512432,0.101651,93580.0,93549.0,0.09358977]
[1767734513135,0.101651,93580.0,93550.0,0.0942507]
[1767734513331,0.09096,93580.0,93550.0,0.0942507]
[1767734513537,0.010692,93578.0,93550.0,0.0942507]
[1767734514436,0.010692,93575.0,93550.0,0.0942507]
[1767734514729,0.010695,93548.0,93534.0,0.09096]
[1767734514927,0.010695,93548.0,93535.0,0.09096]
[1767734515322,0.010696,93540.0,93529.0,0.09574382]
[1767734515530,0.09405601,93548.0,93524.0,0.09096]
[1767734515736,0.010695,93549.0,93523.0,0.09096]
[1767734516122,0.010695,93546.0,93523.0,0.09096]
[1767734516322,0.09405601,93551.0,93516.0,0.09574382]
[1767734516536,0.010695,93546.0,93517.0,0.09096]
[1767734516831,0.010696,93543.0,93517.0,0.09096]
[1767734517437,0.09405601,93548.0,93518.0,0.09574382]
[1767734518035,0.010695,93547.0,93518.0,0.09574382]
[1767734518639,0.010696,93544.0,93518.0,0.09574382]
[1767734520133,0.09096,93547.0,93518.0,0.09574382]
[1767734520329,0.0926548,93540.0,93507.0,0.09096]
[1767734520639,0.09417806,93545.0,93511.0,0.09693981]
[1767734520840,0.09096,93544.0,93513.0,0.09693981]
[1767734521539,0.09407419,93529.0,93481.0,0.09091687]
[1767734521738,0.12452278,93540.0,93481.0,0.09091687]
[1767734521739,0.09493364,93521.0,93485.0,0.09820029]
[1767734521941,0.09096,93520.0,93485.0,0.09820029]
[1767734522338,0.010699,93513.0,93486.0,0.09820029]
[1767734522938,0.010699,93516.0,93486.0,0.09820029]
[1767734524340,0.09096,93520.0,93486.0,0.09820029]
[1767734524644,0.010699,93517.0,93486.0,0.09820029]
[1767734525541,0.010699,93515.0,93486.0,0.09820029]
[1767734525738,0.010699,93517.0,93487.0,0.09820029]
[1767734525934,0.09407419,93518.0,93484.0,0.059821]
[1767734526138,0.010699,93515.0,93483.0,0.09820029]
[1767734526543,0.010699,93515.0,93483.0,0.18911716]
[1767734526839,0.010699,93512.0,93484.0,0.09820029]
[1767734527042,0.0107,93501.0,93484.0,0.09820029]
[1767734527238,0.10166,93508.0,93483.0,0.09820029]
[1767734527638,0.09407419,93526.0,93492.0,0.09820029]
[1767734527845,0.09493364,93541.0,93502.0,0.18911716]
[1767734528033,0.010696,93540.0,93507.0,0.18911716]
[1767734528238,0.18589364,93541.0,93508.0,0.09604415]
[1767734528433,0.010697,93531.0,93508.0,0.09604415]
[1767734528639,0.010697,93534.0,93508.0,0.09604415]
[1767734529038,0.010697,93534.0,93509.0,0.09096]
[1767734529247,0.09493364,93540.0,93509.0,0.09096]
[1767734529440,0.010696,93537.0,93509.0,0.09096]
[1767734530341,0.09493364,93531.0,93501.0,0.09096]
[1767734530540,0.10563064,93531.0,93502.0,0.09096]
[1767734531548,0.10563064,93531.0,93502.0,0.18916029]
[1767734531738,0.10563064,93531.0,93503.0,0.09820029]
[1767734531938,0.09493364,93531.0,93503.0,0.09820029]
[1767734532751,0.010697,93528.0,93503.0,0.09820029]
[1767734532945,0.09493364,93531.0,93503.0,0.09820029]
[1767734533160,0.09096,93530.0,93503.0,0.09820029]
[1767734533348,0.010698,93525.0,93503.0,0.09820029]
[1767734533556,0.010698,93525.0,93502.0,0.09096]
[1767734533854,0.18589364,93530.0,93502.0,0.09096]
[1767734534342,0.09493364,93529.0,93502.0,0.09096]
[1767734534548,0.09493364,93529.0,93503.0,0.09820029]
[1767734534743,0.09096,93530.0,93506.0,0.09820029]
[1767734535058,0.09096,93530.0,93502.0,0.09096]
[1767734535254,0.09493364,93529.0,93502.0,0.09096]
[1767734535755,0.010698,93523.0,93502.0,0.09096]
[1767734535946,0.010698,93526.0,93502.0,0.09096]
[1767734536146,0.09493364,93529.0,93502.0,0.18916029]
[1767734536356,0.09493364,93529.0,93502.0,0.18700555]
[1767734537256,0.010697,93528.0,93502.0,0.18700555]
[1767734537750,0.010698,93526.0,93502.0,0.18700555]
[1767734538553,0.010698,93524.0,93502.0,0.18700555]
[1767734539157,0.010698,93522.0,93502.0,0.18700555]
[1767734539359,0.010698,93525.0,93502.0,0.18700555]
[1767734540450,0.09493364,93529.0,93503.0,0.09820029]
[1767734540451,0.010697,93528.0,93503.0,0.09820029]
[1767734541054,0.010695,93546.0,93502.0,0.08880526]
[1767734541055,0.09493364,93538.0,93506.0,0.09820029]
[1767734541249,0.09096,93537.0,93507.0,0.09091687]
[1767734541444,0.010696,93540.0,93511.0,0.09091687]
[1767734541660,0.09096,93539.0,93512.0,0.09820029]
[1767734542143,0.09493364,93538.0,93512.0,0.09820029]
[1767734542351,0.09493364,93534.0,93503.0,0.18911716]
[1767734542661,0.010698,93526.0,93503.0,0.09820029]
[1767734543158,0.09493364,93532.0,93503.0,0.09820029]
[1767734543753,0.010697,93528.0,93503.0,0.09820029]
[1767734544049,0.101657,93528.0,93503.0,0.09820029]
[1767734545547,0.09096,93528.0,93503.0,0.18911716]
[1767734545753,0.010697,93527.0,93504.0,0.09820029]
[1767734545959,0.010698,93523.0,93504.0,0.09820029]
[1767734546257,0.010698,93526.0,93504.0,0.09820029]
[1767734546661,0.09096,93528.0,93504.0,0.09820029]
[1767734546963,0.010697,93527.0,93504.0,0.09820029]
[1767734547257,0.010698,93525.0,93504.0,0.09820029]
[1767734547865,0.010698,93527.0,93504.0,0.18911716]
[1767734548068,0.09407419,93567.0,93512.0,0.09091687]
[1767734548366,0.18900783,93588.0,93546.0,0.18911716]
[1767734548665,0.18900783,93588.0,93547.0,0.09096]
[1767734548666,0.09493364,93573.0,93547.0,0.09096]
[1767734548851,0.09493364,93573.0,93548.0,0.09096]
[1767734549056,0.010692,93577.0,93550.0,0.09820029]
[1767734549265,0.010692,93574.0,93550.0,0.09820029]
[1767734549765,0.010692,93574.0,93550.0,0.18916029]
[1767734550966,0.09096,93576.0,93552.0,0.09820029]
[1767734551160,0.09096,93576.0,93553.0,0.09820029]
[1767734552070,0.09407419,93591.0,93554.0,0.09215434]
[1767734552268,0.09096,93597.0,93560.0,0.09215434]
[1767734552467,0.09646681,93599.0,93564.0,0.09215434]
[1767734552666,0.010689,93606.0,93572.0,0.18854603]
[1767734552871,0.010689,93606.0,93565.0,0.101653]
[1767734552872,0.09096,93605.0,93576.0,0.09215434]
[1767734553066,0.09096,93605.0,93577.0,0.09215434]
[1767734553276,0.09646681,93604.0,93577.0,0.09215434]
[1767734553575,0.010689,93602.0,93577.0,0.09215434]
[1767734553769,0.010689,93602.0,93550.0,0.08365095]
[1767734553770,0.09185646,93603.0,93568.0,0.09215434]
[1767734553972,0.09646681,93595.0,93568.0,0.05952163]
[1767734554162,0.09096,93594.0,93567.0,0.09096]
[1767734554367,0.01069,93590.0,93567.0,0.09096]
[1767734554572,0.01069,93593.0,93567.0,0.09096]
[1767734554774,0.01069,93593.0,93567.0,0.14840078]
[1767734555079,0.010691,93586.0,93567.0,0.14840078]
[1767734555276,0.09646681,93592.0,93567.0,0.14840078]
[1767734555467,0.01069,93589.0,93567.0,0.14840078]
[1767734555674,0.09646681,93592.0,93567.0,0.14840078]
[1767734556584,0.10715681,93592.0,93567.0,0.14840078]
[1767734556986,0.010691,93588.0,93567.0,0.14840078]
[1767734558672,0.09646681,93592.0,93567.0,0.14840078]
[1767734558877,0.010693,93564.0,93551.0,0.09215434]
[1767734559088,0.09646681,93585.0,93554.0,0.09215434]
[1767734559288,0.10161,93592.0,93560.0,0.09215434]
[1767734559492,0.09092,93591.0,93567.0,0.09215434]
[1767734559683,0.09092,93591.0,93569.0,0.09639169]
[1767734559884,0.09092,93591.0,93569.0,0.18854603]
[1767734560089,0.09092,93591.0,93570.0,0.09215434]
[1767734560291,0.18832327,93603.0,93571.0,0.09215434]
[1767734560488,0.18738681,93623.0,93584.0,0.09215434]
[1767734560783,0.09646681,93621.0,93589.0,0.09215434]
[1767734561090,0.09646681,93621.0,93593.0,0.09215434]
[1767734561288,0.09646681,93631.0,93596.0,0.09215434]
[1767734561492,0.09092,93630.0,93597.0,0.09215434]
[1767734561789,0.010686,93626.0,93597.0,0.09215434]
[1767734562189,0.010687,93623.0,93597.0,0.09215434]
[1767734562382,0.010686,93627.0,93597.0,0.09215434]
[1767734562583,0.010686,93627.0,93598.0,0.18854603]
[1767734562883,0.010686,93627.0,93599.0,0.09215434]
[1767734563281,0.010686,93625.0,93599.0,0.09215434]
[1767734563791,0.010686,93625.0,93590.0,0.14879373]
[1767734563792,0.09092,93630.0,93602.0,0.09215434]
[1767734564090,0.010687,93620.0,93603.0,0.09092]
[1767734564288,0.010687,93623.0,93603.0,0.09092]
[1767734564589,0.010687,93621.0,93603.0,0.09092]
[1767734564787,0.09646681,93619.0,93590.0,0.05787373]
[1767734564986,0.09646681,93608.0,93585.0,0.09092]
[1767734565288,0.09646681,93607.0,93583.0,0.1488317]
[1767734565590,0.010689,93599.0,93576.0,0.09092]
[1767734565789,0.09646681,93607.0,93576.0,0.18307434]
[1767734565994,0.09092,93610.0,93579.0,0.09215434]
[1767734566296,0.09092,93615.0,93584.0,0.09639169]
[1767734566587,0.09092,93615.0,93585.0,0.09215434]
[1767734566787,0.09092,93615.0,93576.0,0.09092]
[1767734566788,0.09092,93615.0,93587.0,0.09215434]
[1767734567091,0.09092,93615.0,93589.0,0.09215434]
[1767734568175,0.09646681,93634.0,93596.0,0.09215434]
[1767734568376,0.010685,93632.0,93599.0,0.09639169]
[1767734568687,0.09088,93631.0,93601.0,0.09215434]
[1767734568887,0.10715181,93632.0,93601.0,0.09215434]
[1767734569390,0.010686,93630.0,93601.0,0.09215434]
[1767734569592,0.09088,93630.0,93602.0,0.09215434]
[1767734569793,0.09088,93630.0,93603.0,0.09215434]
[1767734569984,0.18734681,93649.0,93611.0,0.09215434]
[1767734570291,0.18734681,93649.0,93621.0,0.09639169]
[1767734570493,0.18734681,93649.0,93622.0,0.09088]
[1767734570686,0.19802981,93657.0,93625.0,0.18854603]
[1767734570887,0.010683,93653.0,93625.0,0.18854603]
[1767734571190,0.09646681,93649.0,93626.0,0.09088]
[1767734571487,0.09646681,93649.0,93627.0,0.09088]
[1767734571684,0.09646681,93646.0,93626.0,0.09088]
[1767734572084,0.09646681,93657.0,93626.0,0.09088]
[1767734572289,0.09646681,93657.0,93626.0,0.18727169]
[1767734572792,0.09646681,93657.0,93627.0,0.18854603]
[1767734572988,0.09646681,93657.0,93629.0,0.09639169]
[1767734573694,0.09646681,93657.0,93630.0,0.09639169]
[1767734573998,0.09088,93658.0,93633.0,0.09215434]